Cogmind - Beta 13 @@@ ROGUE MODE // 2024.06.30 @ 02:25:48 Player: Lunace Result: Destroyed by Alpha 7 with Multirail Performance ------------- Evolutions (9) 4500 Regions Visited (25) 5000 Robots Destroyed (129) 645 Value Destroyed (4024) 4024 Prototype IDs (118) 2360 Alien Tech Used (3) 600 Bonus (13829) 13829 TOTAL SCORE: 30958 Bonus ------- High Alert Combat Kills 33 Follower Combat Kills 716 Aligned with FarCom 300 Met Zhirov 300 Met Warlord at Base 500 MAIN.C Attacked Warlord 500 Warlord Defense Kills 546 Met Warlord at Research 2000 Invited to Help at Command 2000 Met MAIN.C 5000 Met Warlord at Command 2000 Friendly Fire -66 Cogmind --------- Core Integrity 0/1600 Matter 175/300 Energy 99/100 System Corruption 7% Temperature Cool (3) Movement Flying (40) Location -1/Command Parts ------- > --- POWER (2) -------- (None) > --- PROPULSION (6) --- Xenon Bombardment Thruster > --- UTILITY (16) ----- Triangulator Experimental Optical Array Advanced Terrain Scan Processor Advanced Melee Analysis Suite Improved Hacking Suite Improved Hacking Suite Advanced Hacking Suite Improved System Shield Improved System Shield Advanced System Shield > --- WEAPON (2) ------- (None) > --- INVENTORY (5) ---- Quantum Reactor Advanced Datajack Enhanced Force Lance Enhanced Force Lance Peak State ------------ > --- POWER ------------ Light Quantum Reactor Light Quantum Reactor > --- PROPULSION ------- Cooled Field Propulsion Drive Q-thruster Q-thruster Electron Diverter Electron Diverter Electron Diverter > --- UTILITY ---------- Experimental Heat Sink Structural Scanner Experimental Optical Array Advanced Melee Analysis Suite Experimental Core Analyzer Nanoactuators Advanced Transmission Jammer Advanced Reaction Control System Advanced Cloaking Device Centrium Light Armor Plating Centrium Light Armor Plating Advanced Hacking Suite Advanced Hacking Suite Advanced Hacking Suite Advanced System Shield Advanced System Shield > --- WEAPON ----------- Advanced Datajack Lance > --- INVENTORY -------- Transdimensional Reconstructor Gamma Bomb Array Ragnarok Missile Launcher [Rating: 194] Favorites ----------- Power Light Quantum Reactor Engine Improved Ion Engine Power Core Light Fission Core Reactor Light Quantum Reactor Propulsion Q-thruster Treads Light Treads Hover Unit Cooled Linear Gravjet Flight Unit Q-thruster Utility Advanced Hacking Suite Device Structural Scanner Storage Small Storage Unit Processor Enhanced Optical Array Hackware Advanced Hacking Suite Protection Centrium Light Armor Plating Weapon Lance Energy Gun Medium Laser Energy Cannon Vortex Cannon Ballistic Gun Assault Rifle Ballistic Cannon Improved Light Cannon Launcher Grenade Launcher Special Weapon Enhanced Flamer Impact Weapon Great Maul Slashing Weapon Centrium Greatsword Piercing Weapon Lance Special Melee Weapon Advanced Datajack Build | -11 -10 -10 -9 -9 -9 -8 -8 -7 -6 -6 -6 -5 -5 -5 -5 -4 -4 -4 -4 -4 -3 -3 -2 -1 -1 ------- Run | Yrd Mat Min Mat Min Exi Min Mat Fac Fac Was Fac Fac Upp Upp Zhi Pro Fac Upp Upp War Pro Res Res Acc Com Slots Evolved 18 | . . . 2 . . . 2 2 2 . . 2 . . . . 2 . . . . 2 2 2 . Power . | . . . . . . . . . . . . . . . . . . . . . . . . . . Propulsion 4 | . . . 1 . . . 1 . . . . . . . . . . . . . . 1 1 . . Utility 14 | . . . 1 . . . 1 2 2 . . 2 . . . . 2 . . . . 1 1 2 . Weapon . | . . . . . . . . . . . . . . . . . . . . . . . . . . Parts Attached 256 | 8 2 . 26 9 . . 12 17 16 . 7 15 7 2 5 1 25 1 3 12 . 16 28 17 27 Power 29 | 1 . . 3 1 . . 1 4 1 . 1 . . . 2 . 4 . . 1 . 1 5 3 1 Engine 10 | 1 . . 3 1 . . 1 3 . . . . . . . . . . . . . . . . 1 Core 4 | . . . . . . . . 1 1 . 1 . . . 1 . . . . . . . . . . Reactor 15 | . . . . . . . . . . . . . . . 1 . 4 . . 1 . 1 5 3 . Propulsion 55 | 2 . . 3 2 . . 4 6 5 . . 6 . . . . 6 . . . . 6 8 1 6 Treads 7 | 2 . . 3 2 . . . . . . . . . . . . . . . . . . . . . Leg . | . . . . . . . . . . . . . . . . . . . . . . . . . . Wheel . | . . . . . . . . . . . . . . . . . . . . . . . . . . Hover 1 | . . . . . . . . . . . . . . . . . . . . . . . . . 1 Flight 47 | . . . . . . . 4 6 5 . . 6 . . . . 6 . . . . 6 8 1 5 Utility 102 | 2 . . 7 1 . . 3 5 7 . 6 7 4 . 3 1 10 1 2 1 . 6 11 9 16 Device 47 | 1 . . 2 . . . 1 1 1 . 3 3 3 . . 1 8 1 1 1 . 5 4 4 7 Storage 7 | 1 . . 3 . . . 1 . . . . . . . 2 . . . . . . . . . . Processor 15 | . . . . . . . . 2 1 . 1 1 1 . . . 1 . 1 . . . 3 2 2 Hackware 24 | . . . 1 . . . . 2 5 . 2 3 . . 1 . 1 . . . . 1 2 1 5 Protection 9 | . . . 1 1 . . 1 . . . . . . . . . . . . . . . 2 2 2 Artifact . | . . . . . . . . . . . . . . . . . . . . . . . . . . Weapon 70 | 3 2 . 13 5 . . 4 2 3 . . 2 3 2 . . 5 . 1 10 . 3 4 4 4 Energy Gun 5 | 1 1 . 2 . . . . . . . . . . . . . . . . 1 . . . . . Energy Cannon 1 | . . . . . . . . . . . . . . . . . . . . 1 . . . . . Ballistic Gun 11 | 2 . . 6 3 . . . . . . . . . . . . . . . . . . . . . Ballistic Cannon 2 | . . . 1 1 . . . . . . . . . . . . . . . . . . . . . Launcher 19 | . 1 . 2 1 . . 1 . 1 . . . 2 1 . . 2 . 1 1 . . 2 1 3 Special Weapon 5 | . . . . . . . . . . . . . 1 . . . . . . 3 . 1 . . . Impact Weapon 3 | . . . 2 . . . 1 . . . . . . . . . . . . . . . . . . Slashing Weapon 2 | . . . . . . . 1 . . . . . . . . . . . . . . . . . 1 Piercing Weapon 6 | . . . . . . . 1 . 1 . . 1 . . . . . . . 1 . . . 2 . Special Melee Weapon 16 | . . . . . . . . 2 1 . . 1 . 1 . . 3 . . 3 . 2 2 1 . Unidentified Prototypes 14 | . . . 1 . . . . . 1 . . . . . 4 . . . 1 4 . . 2 . 1 Corrupted Parts 1 | . . . . . . . . . . . . . . . . . . . . . . . . . 1 System Corruption 3 | . . . . . . . . . . . . . . . . . . . . . . . . . 3 Parts Lost 42 | . . . 5 5 . . . . 1 . . . 1 . . . 2 . . . . . . 3 25 Power 5 | . . . 1 1 . . . . . . . . . . . . . . . . . . . . 3 Propulsion 16 | . . . . 3 . . . . . . . . 1 . . . 1 . . . . . . 1 10 Utility 18 | . . . 2 1 . . . . 1 . . . . . . . 1 . . . . . . 2 11 Weapon 3 | . . . 2 . . . . . . . . . . . . . . . . . . . . . 1 Highest Loss Streak 14 | . . . 2 3 . . . . 1 . . . 1 . . . 1 . . . . . . 2 14 To Critical Strikes 1 | . . . . . . . . . . . . . . . . . . . . . . . . . 1 Average Slot Usage (%) 93 | . 100 100 87 85 66 66 89 98 96 100 100 99 94 94 91 94 95 100 92 95 90 96 99 96 81 Engine 3 | . 14 14 10 11 11 11 9 5 . . . . . . . . . . . 2 . . . . . Core 1 | . . . . . . . . 1 6 6 6 5 5 5 5 5 . . . . . . . . . Reactor 2 | . . . . . . . . . . . . . . . . . 4 5 5 5 5 7 8 7 3 Treads 6 | . 28 28 26 20 22 22 . . . . . . . . . . . . . . . . . . . Flight 17 | . . . . . . . 33 29 25 26 26 23 20 17 17 17 18 21 20 20 20 22 24 22 18 Device 12 | . 14 14 5 . . . 8 7 6 6 8 11 11 11 5 5 19 21 20 20 20 23 22 22 14 Storage 5 | . 14 14 11 11 11 11 9 7 6 6 6 5 5 5 5 5 . . . . . . . . . Processor 6 | . . . . . . . . 7 10 6 6 6 11 11 11 11 10 10 10 10 10 5 8 11 14 Hackware 20 | . . . 7 11 11 11 9 20 25 33 30 33 29 29 32 35 30 31 30 30 30 27 22 20 20 Protection 2 | . . . 4 9 11 11 3 . . . . . . . . . . . . . . . 3 2 1 Ballistic Gun 3 | . 20 14 14 16 . . . . . . . . . . . . . . . . . . . . . Launcher 1 | . 6 14 1 2 . . 3 . . . . . . . . . . . . . . . . . . Piercing Weapon 3 | . . . . . . . 6 7 6 6 6 5 5 5 5 5 5 5 5 5 5 4 4 3 1 Special Melee Weapon 2 | . . . . . . . . 6 5 6 6 4 1 1 5 5 4 5 . 2 . 3 3 2 1 Naked Turns . | . . . . . . . . . . . . . . . . . . . . . . . . . . Heaviest Build 51 | 15 16 16 38 38 30 30 30 19 20 16 19 20 25 19 18 17 29 22 21 32 22 46 46 47 51 Greatest Support 60 | 40 40 40 60 60 40 40 40 24 24 24 24 28 28 20 20 20 29 24 24 24 24 40 48 47 45 Greatest Overweight (x) 1 | . . . . 1 . . . . . . . . . . . . 1 . . 1 . 1 . 1 1 Average Overweight (x) . | . . . . . . . . . . . . . . . . . . . . . . . . . . Largest Inventory Capacity 15 | 8 8 8 15 15 15 15 15 8 8 8 8 8 8 8 8 8 8 5 5 5 5 5 5 5 5 Average Capacity 7 | 7 8 8 11 15 15 15 8 8 8 8 8 8 8 8 8 8 5 5 5 5 5 5 5 5 5 Most Carried 15 | 2 3 5 14 15 15 15 15 8 8 8 8 8 8 8 8 8 8 4 5 5 5 5 5 5 5 Average Carried 6 | 1 2 4 8 13 14 15 5 6 6 6 6 7 7 7 7 7 4 4 4 4 5 4 4 3 4 Final Capacity 15 | 8 8 8 15 15 15 15 8 8 8 8 8 8 8 8 8 8 5 5 5 5 5 5 5 5 5 Final Carried 15 | 2 3 5 13 15 15 15 5 8 6 7 8 8 8 7 7 8 4 4 5 5 5 3 5 5 4 Class Distribution -------------------- 44% | Wizard-Ninja 16% | Hacker-Scout 15% | Scavenger-Mutant 10% | Mutant 4% | Wizard-Sprinter 3% | Scavenger-Sprinter Dominant Class ---------------- Mutant | -10/Materials Mutant | -10/Mines Mutant | -9/Materials Scavenger-Mutant | -9/Mines Scavenger-Mutant | -9/Exiles Scavenger-Mutant | -8/Mines Scavenger-Sprinter | -8/Materials Hacker-Scout | -7/Factory Hacker-Scout | -6/Factory Hacker-Scout | -6/Waste Hacker-Scout | -6/Factory Wizard-Ninja | -5/Factory Wizard-Ninja | -5/Upper Caves Wizard-Ninja | -5/Upper Caves Wizard-Sprinter | -5/Zhirov Wizard-Scout | -4/Proximity Caves Wizard-Ninja | -4/Factory Wizard-Ninja | -4/Upper Caves Wizard-Ninja | -4/Upper Caves Wizard-Ninja | -4/Warlord Wizard-Ninja | -3/Proximity Caves Wizard-Ninja | -3/Research Wizard-Ninja | -2/Research Wizard-Ninja | -1/Access Wizard-Sprinter | -1/Command Resources | -11 -10 -10 -9 -9 -9 -8 -8 -7 -6 -6 -6 -5 -5 -5 -5 -4 -4 -4 -4 -4 -3 -3 -2 -1 -1 ----------- Run | Yrd Mat Min Mat Min Exi Min Mat Fac Fac Was Fac Fac Upp Upp Zhi Pro Fac Upp Upp War Pro Res Res Acc Com Matter Collected 4390 | 236 106 . 655 485 29 . 17 311 102 70 77 86 225 4 173 10 305 17 101 120 . 110 470 260 421 Remotely 118 | . . . 118 . . . . . . . . . . . . . . . . . . . . . . Salvage Created 6642 | 13 113 . 1100 230 . . 46 356 305 288 . 383 62 40 292 . 607 . 35 193 24 184 713 658 1000 Parts 308 | 4 7 . 56 4 . . 3 29 9 3 . 22 3 5 2 . 33 . 5 5 2 8 33 33 42 Haulers Intercepted 17 | . . . . . . . . 5 3 . . 1 . . . . 2 . . . . 1 4 1 . Recyclers Shooed 3 | 1 . . 2 . . . . . . . . . . . . . . . . . . . . . . Parts Field Recycled . | . . . . . . . . . . . . . . . . . . . . . . . . . . Retrieved Matter . | . . . . . . . . . . . . . . . . . . . . . . . . . . Parts Self-Destructed 15 | . . . . . . . . . . . . . 1 4 1 . . . 7 . 2 . . . . Prevented . | . . . . . . . . . . . . . . . . . . . . . . . . . . Kills | -11 -10 -10 -9 -9 -9 -8 -8 -7 -6 -6 -6 -5 -5 -5 -5 -4 -4 -4 -4 -4 -3 -3 -2 -1 -1 ------- Run | Yrd Mat Min Mat Min Exi Min Mat Fac Fac Was Fac Fac Upp Upp Zhi Pro Fac Upp Upp War Pro Res Res Acc Com Combat Hostiles Destroyed 75 | . 4 . 22 15 . . 2 . . . . 1 1 4 . . 6 . 4 4 2 1 . 6 3 Melee 14 | . . . 1 . . . . . . . . 1 . . . . 1 . . . 2 . . 6 3 Guns 23 | . . . 13 10 . . . . . . . . . . . . . . . . . . . . . AOE 35 | . 4 . 5 5 . . 2 . . . . . 1 4 . . 5 . 4 4 . 1 . . . Classes Destroyed 16 | 1 3 . 4 3 . . . 1 . . . . . . . . . . . 1 1 . 1 . 1 Worker 5 | . . . . 2 . . 1 . . . . 2 . . . . . . . . . . . . . Builder 2 | . . . . 1 . . . . . . . 1 . . . . . . . . . . . . . Tunneler 1 | 1 . . . . . . . . . . . . . . . . . . . . . . . . . Hauler 17 | . . . . . . . . 5 3 . . 1 . . . . 2 . . . . 1 4 1 . Recycler 10 | . 1 . 3 1 . . . . . . . 1 . . . . 1 . . . . . . 1 2 Mechanic 1 | . . . . . . . . . . . . . . . . . . . . 1 . . . . . Operator 8 | . . . 1 . . . . 1 . . . . . . . . . . 1 . . . 2 1 2 Drone 2 | . . . . . . . . . . . . . . . . . . . . . 2 . . . . Watcher 25 | . . . 2 . . . . 4 . . . 1 . . . . 4 . . . . 2 6 5 1 Swarmer 26 | . 3 . 4 . . . . . . . . . . 4 . . 5 . 4 . . . . 6 . Grunt 18 | . 1 . 10 . . . 2 . . . . . 1 . . . 1 . . 3 . . . . . Brawler 4 | . . . 3 . . . . . . . . . . . . . . . . 1 . . . . . Sentry 7 | . . . 5 . . . . . . . . 1 . . . . . . . . . 1 . . . Programmer 2 | . . . . . . . . . . . . . . . . . . . . . . . . . 2 Combat Programmer 1 | . . . . . . . . . . . . . . . . . . . . . . . . . 1 Decomposer 1 | . . . . . . . . . . . . . 1 . . . . . . . . . . . . Samaritan 1 | . . . . . . . . . . . . . . . . . . . . . . . 1 . . Assembled 15 | . . . . 15 . . . . . . . . . . . . . . . . . . . . . Best Kill Streak 6 | 1 5 . 5 5 . . 3 1 1 . . 2 1 4 . . 6 . 4 5 1 2 2 6 2 Combat Bots Only 6 | . 4 . 4 4 . . 2 . . . . 1 1 4 . . 5 . 4 4 1 1 . 6 2 Max Kills in Single Turn 3 | 1 3 . 2 2 . . 1 1 1 . . 1 1 3 . . 3 . 3 2 1 1 1 1 1 Gunslinging . | . . . . . . . . . . . . . . . . . . . . . . . . . . Exploded 3 | . 3 . 2 2 . . 1 . . . . . 1 3 . . 3 . 2 2 . 1 . . . Melee 1 | . . . 1 . . . . . . . . 1 . . . . 1 . . . 1 . . 1 1 Uniques/NPCs Destroyed . | . . . . . . . . . . . . . . . . . . . . . . . . . . Combat | -11 -10 -10 -9 -9 -9 -8 -8 -7 -6 -6 -6 -5 -5 -5 -5 -4 -4 -4 -4 -4 -3 -3 -2 -1 -1 -------- Run | Yrd Mat Min Mat Min Exi Min Mat Fac Fac Was Fac Fac Upp Upp Zhi Pro Fac Upp Upp War Pro Res Res Acc Com Hostile Shots Fired 390 | . 12 . 116 34 . . 3 . 11 . 2 . 3 8 . . 17 . 5 . . 10 2 37 130 Missed 139 | . 3 . 38 9 . . 1 . 6 . 2 . . 7 . . 3 . 1 . . 7 . 13 49 Damage Taken 6874 | . 92 . 1107 779 . . 34 . 49 . 65 . 117 13 . . 279 . 56 . . 68 60 563 3592 Core 1973 | . 25 . 204 70 . . . . 5 . 11 . 20 . . . 82 . . . . . . 43 1513 Absorbed by Shields . | . . . . . . . . . . . . . . . . . . . . . . . . . . Regen/Repaired (Parts) 685 | . . . . . . . . 30 . . 139 10 . . . . 18 . . 1 . . 32 170 285 Core Remaining (%) 90 | 100 . 90 . . . 31 100 100 . . 98 . . . . 98 . . . . 92 100 100 . . Volleys Fired 181 | 2 6 . 79 44 . . 4 . . . . . 10 2 . . 6 . 2 3 . 4 4 3 12 Largest 2 | 2 1 . 2 2 . . 1 . . . . . 1 1 . . 1 . 1 1 . 1 1 1 1 Hottest 80 | 40 40 . 70 62 . . 30 . . . . . 43 43 . . 43 . 52 . . . 70 70 80 Shots Fired 273 | 4 6 . 142 71 . . 4 . . . . . 10 2 . . 6 . 2 3 . 4 4 3 12 Gun 195 | 4 3 . 131 57 . . . . . . . . . . . . . . . . . . . . . Cannon 7 | . . . . 7 . . . . . . . . . . . . . . . . . . . . . Launcher 64 | . 3 . 11 7 . . 4 . . . . . 10 2 . . 6 . 2 . . . 4 3 12 Special 7 | . . . . . . . . . . . . . . . . . . . . 3 . 4 . . . Kinetic 195 | 4 . . 127 64 . . . . . . . . . . . . . . . . . . . . . Thermal 3 | . . . 3 . . . . . . . . . . . . . . . . . . . . . . Explosive 69 | . 3 . 11 7 . . 4 . . . . . 10 2 . . 6 . 2 3 . 4 4 3 10 Electromagnetic 6 | . 3 . 1 . . . . . . . . . . . . . . . . . . . . . 2 Robot Hit Streak 13 | 1 . . 13 8 . . 5 . . . . . 7 1 . . 2 . . 2 . . . . 5 Robot Miss Streak 4 | 1 1 . 4 3 . . . . . . . . 1 2 . . 1 . 1 . . . . . 1 Penetration Max . | . . . . . . . . . . . . . . . . . . . . . . . . . . Secondary Targets 3 | . . . 3 . . . . . . . . . . . . . . . . . . . . . . Max Gunslinging Chain 1 | . . . 1 . . . . . . . . . . . . . . . . . . . . . . Shots Hit Robots 350 | 2 . . 103 39 . . 2 29 20 5 . 14 3 1 5 . 20 . . 2 3 7 35 22 38 Core Hits 232 | 1 5 . 41 39 . . 6 10 5 2 . 6 6 6 2 . 14 . 3 8 1 7 12 14 44 Critical Kills 1 | . . . . 1 . . . . . . . . . . . . . . . . . . . . . Critical Parts Destroyed 3 | . . . 3 . . . . . . . . . . . . . . . . . . . . . . Critical Strikes 24 | . . . 3 1 . . . 2 1 . . . . . . . 3 . . 1 . 1 5 2 5 Destroy 1 | . . . . 1 . . . . . . . . . . . . . . . . . . . . . Smash 3 | . . . 3 . . . . . . . . . . . . . . . . . . . . . . Sever 3 | . . . . . . . . . . . . . . . . . . . . 1 . . . . 2 Impale 17 | . . . . . . . . 2 1 . . . . . . . 3 . . . . 1 5 2 3 Melee Attacks 473 | . . . 27 . . . 7 75 43 5 8 31 9 6 5 2 37 2 4 4 7 12 70 68 51 Impact 28 | . . . 27 . . . 1 . . . . . . . . . . . . . . . . . . Slashing 21 | . . . . . . . 1 . . . . . . . . . . . . . . . . . 20 Piercing 403 | . . . . . . . 5 70 38 5 8 25 9 6 5 2 35 2 4 4 7 10 70 67 31 Sneak Attacks 62 | . . . 1 . . . . 11 8 . . 12 1 . . . 5 . . . . 5 11 4 4 Combat Hostiles 5 | . . . . . . . . . . . . 5 . . . . . . . . . . . . . Follow-up Attacks . | . . . . . . . . . . . . . . . . . . . . . . . . . . Damage Inflicted 20410 | 25 185 . 2218 1126 . . 339 1176 656 127 . 460 505 291 396 . 1458 . 589 1425 136 508 2490 1329 4971 Guns 1548 | 25 . . 1084 439 . . . . . . . . . . . . . . . . . . . . . Cannons 88 | . . . . 88 . . . . . . . . . . . . . . . . . . . . . Explosions 6895 | . 185 . 507 599 . . 339 . . . . . 426 291 . . 516 . 589 1307 . 177 . . 1959 Melee 11761 | . . . 627 . . . . 1176 656 127 . 460 79 . 396 . 942 . . . 136 331 2490 1329 3012 Ramming . | . . . . . . . . . . . . . . . . . . . . . . . . . . Kinetic 1600 | 25 . . 1048 527 . . . . . . . . . . . . . . . . . . . . . Thermal 36 | . . . 36 . . . . . . . . . . . . . . . . . . . . . . Explosive 6833 | . 185 . 507 599 . . 339 . . . . . 426 291 . . 516 . 589 1307 . 177 . . 1897 Electromagnetic 62 | . . . . . . . . . . . . . . . . . . . . . . . . . 62 Impact 627 | . . . 627 . . . . . . . . . . . . . . . . . . . . . . Slashing 1175 | . . . . . . . . . . . . . . . . . . . . 118 . . . . 1057 Piercing 10077 | . . . . . . . . 1176 656 127 . 460 79 . 396 . 942 . . . 136 331 2490 1329 1955 Highest Corruption 14 | . . . . 2 2 2 2 4 1 1 1 . . . . . . . . . . . . . 14 Average Corruption 3 | . . . . 2 2 2 2 3 1 1 1 . . . . . . . . . . . . . 9 Corruption Purged 8 | . . . . . . . . . . . 1 . . . . . . . . . . . . . 7 Corruption Blocked 58 | . . . . . . . . . . . . . . . . . . . 15 . . . 43 . . Effects 32 | . . . . 7 3 1 . 9 . 1 1 . . . . . . . . . . . . . 10 Message Errors 5 | . . . . 1 . . . 3 . . . . . . . . . . . . . . . . 1 Matter Fused 4 | . . . . 1 . . . 1 . 1 . . . . . . . . . . . . . . 1 Heat Flow Errors 9 | . . . . . 2 1 . 3 . . 1 . . . . . . . . . . . . . 2 Energy Discharges 6 | . . . . . . . . 1 . . . . . . . . . . . . . . . . 5 Parts Fused 1 | . . . . . . . . 1 . . . . . . . . . . . . . . . . . Data Loss (minor) 3 | . . . . 2 . . . . . . . . . . . . . . . . . . . . 1 Misfires 2 | . . . . 2 . . . . . . . . . . . . . . . . . . . . . Alerts 2 | . . . . 1 1 . . . . . . . . . . . . . . . . . . . . Overload Shots . | . . . . . . . . . . . . . . . . . . . . . . . . . . Overflow Damage 1506 | . . . 189 17 . . . 95 20 . . 28 16 . 157 . 140 . 74 77 43 . 329 133 188 Projectiles 9 | . . . . . . . . . . . . . . . . . . . . 9 . . . . . Explosions 263 | . . . 17 17 . . . . . . . . 16 . . . 49 . 74 68 . . . . 22 Melee 1234 | . . . 172 . . . . 95 20 . . 28 . . 157 . 91 . . . 43 . 329 133 166 Knockbacks 3 | . . . 1 2 . . . . . . . . . . . . . . . . . . . . . Impact 1 | . . . 1 . . . . . . . . . . . . . . . . . . . . . . Kinetic 2 | . . . . 2 . . . . . . . . . . . . . . . . . . . . . Secondary . | . . . . . . . . . . . . . . . . . . . . . . . . . . Self-Inflicted Damage 286 | . 23 . 136 39 . . . . . . . . 57 . . . 21 . . . . . . . 10 Shots 10 | . 1 . 5 1 . . . . . . . . 1 . . . 1 . . . . . . . 1 Rammed . | . . . . . . . . . . . . . . . . . . . . . . . . . . Targets Rammed . | . . . . . . . . . . . . . . . . . . . . . . . . . . Kicked . | . . . . . . . . . . . . . . . . . . . . . . . . . . Crushed . | . . . . . . . . . . . . . . . . . . . . . . . . . . Highest Temperature 310 | . . . 12 3 203 . 2 251 . . 225 . . . . . . . 8 . . 78 310 . 204 Average Temperature 85 | . . . 6 1 97 . 2 109 . . 128 . . . . . . . 5 . . 44 90 . 61 Received Heat Transfer 612 | . . . 423 . . . 18 . 6 . . . 21 . . . 33 . . . . 9 9 27 66 Effects 1 | . . . . . . . . . . . . . . . . . . . . . . . 1 . . Energy Bleed 1 | . . . . . . . . . . . . . . . . . . . . . . . 1 . . Siege Activations . | . . . . . . . . . . . . . . . . . . . . . . . . . . Robots Corrupted . | . . . . . . . . . . . . . . . . . . . . . . . . . . Combat Hostiles . | . . . . . . . . . . . . . . . . . . . . . . . . . . Parts Fried 2 | . . . 2 . . . . . . . . . . . . . . . . . . . . . . Impact Corruptions 8 | . . . 8 . . . . . . . . . . . . . . . . . . . . . . Robots Melted . | . . . . . . . . . . . . . . . . . . . . . . . . . . Combat Hostiles . | . . . . . . . . . . . . . . . . . . . . . . . . . . Parts Melted . | . . . . . . . . . . . . . . . . . . . . . . . . . . Heat Transferred 111 | . . . 111 . . . . . . . . . . . . . . . . . . . . . . Parts Sabotaged . | . . . . . . . . . . . . . . . . . . . . . . . . . . Parts Stolen . | . . . . . . . . . . . . . . . . . . . . . . . . . . Parts Stripped . | . . . . . . . . . . . . . . . . . . . . . . . . . . Power Chain Reactions . | . . . . . . . . . . . . . . . . . . . . . . . . . . Alert | -11 -10 -10 -9 -9 -9 -8 -8 -7 -6 -6 -6 -5 -5 -5 -5 -4 -4 -4 -4 -4 -3 -3 -2 -1 -1 ------- Run | Yrd Mat Min Mat Min Exi Min Mat Fac Fac Was Fac Fac Upp Upp Zhi Pro Fac Upp Upp War Pro Res Res Acc Com Peak Influence 735 | 5 143 55 522 260 . . 112 194 126 21 735 339 . . . . 279 . . . . 326 348 490 335 Initial 255 | . 3 55 21 203 . . . . 49 21 14 255 . . . . . . . . . 156 183 200 178 Average 185 | . 70 55 315 113 . . 26 59 71 21 443 215 . . . . 141 . . . . 216 267 319 178 Maximum Alert Level 3 | . . . 2 1 . . . . . . 3 1 . . . . 1 . . . . 1 1 2 1 Low Security (%) 55 | 100 100 100 13 72 . 100 100 100 100 100 25 31 . . . . 62 . . . . 75 17 5 64 Level 1 36 | . . . 68 27 . . . . . . 7 68 . . . . 37 . . . . 24 82 65 35 Level 2 6 | . . . 18 . . . . . . . 47 . . . . . . . . . . . . 28 . Level 3 . | . . . . . . . . . . . 18 . . . . . . . . . . . . . . Level 4 . | . . . . . . . . . . . . . . . . . . . . . . . . . . Level 5 . | . . . . . . . . . . . . . . . . . . . . . . . . . . High Security . | . . . . . . . . . . . . . . . . . . . . . . . . . . Max Security . | . . . . . . . . . . . . . . . . . . . . . . . . . . Squads Dispatched 48 | . . . 2 . . . 3 9 4 . 5 4 . . . . 5 . . . . 3 . 6 7 Investigation 24 | . . . . . . . 1 5 4 . 2 4 . . . . 3 . . . . 1 . 1 3 Extermination 5 | . . . . . . . . . . . 1 . . . . . 1 . . . . 1 . 1 1 Reinforcement 17 | . . . 2 . . . . 4 . . 2 . . . . . 1 . . . . 1 . 4 3 Assault 1 | . . . . . . . 1 . . . . . . . . . . . . . . . . . . Garrison 1 | . . . . . . . 1 . . . . . . . . . . . . . . . . . . Intercept . | . . . . . . . . . . . . . . . . . . . . . . . . . . Searches Triggered 1 | . . . . . . . . . . . . . . . . . . . . . . . . 1 . Construction Impeded . | . . . . . . . . . . . . . . . . . . . . . . . . . . Haulers Reinforced 3 | . . . . . . . . 2 . . . . . . . . . . . . . 1 . . . Active Scanning Responses . | . . . . . . . . . . . . . . . . . . . . . . . . . . Cargo Convoy Interrupts . | . . . . . . . . . . . . . . . . . . . . . . . . . . Stealth | -11 -10 -10 -9 -9 -9 -8 -8 -7 -6 -6 -6 -5 -5 -5 -5 -4 -4 -4 -4 -4 -3 -3 -2 -1 -1 --------- Run | Yrd Mat Min Mat Min Exi Min Mat Fac Fac Was Fac Fac Upp Upp Zhi Pro Fac Upp Upp War Pro Res Res Acc Com Distress Signals 22 | . . . 3 . . . 2 1 2 . 2 1 . . . . 1 . . . . . 5 1 4 Communications Jammed 43 | . . . . . . . . . . . . . . . . . . . . . 3 . . 9 31 Distress Signals 40 | . . . . . . . . . . . . . . . . . . . . . . . . 9 31 Times Spotted 222 | . 5 . 34 17 . . 3 14 14 . 16 7 8 8 . . 13 . 4 7 3 8 11 22 28 Peak Tracking Total 10 | . 4 . 5 4 . . 2 3 7 . 4 2 5 4 . . 7 . 4 3 2 6 2 3 10 Tactical Retreats 28 | . . . 5 2 . . . 3 6 . 1 . 3 1 . . 1 . . . . 1 2 2 1 Traps | -11 -10 -10 -9 -9 -9 -8 -8 -7 -6 -6 -6 -5 -5 -5 -5 -4 -4 -4 -4 -4 -3 -3 -2 -1 -1 ------- Run | Yrd Mat Min Mat Min Exi Min Mat Fac Fac Was Fac Fac Upp Upp Zhi Pro Fac Upp Upp War Pro Res Res Acc Com Traps Triggered 13 | . . . 1 . . . 1 6 2 . . . . . . . 1 . . . . . . 2 . Indirectly . | . . . . . . . . . . . . . . . . . . . . . . . . . . Trap Hack Attempts 76 | . . . . . . . . 19 . . 8 17 . . . . 24 . . . . 8 . . . Triggered . | . . . . . . . . . . . . . . . . . . . . . . . . . . Disarmed 1 | . . . . . . . . . . . . 1 . . . . . . . . . . . . . Reprogrammed 22 | . . . . . . . . 2 . . 1 7 . . . . 9 . . . . 3 . . . Reused 6 | . . . . . . . . . . . . 4 . . . . 2 . . . . . . . . Traps Extracted . | . . . . . . . . . . . . . . . . . . . . . . . . . . Installed . | . . . . . . . . . . . . . . . . . . . . . . . . . . Triggered 17 | . . . . . . . . . . . . 4 . 1 . . 2 . . 9 . . . . 1 Most Traps Carried 2 | . . . . 2 . . . . . . . . . . . . . . . . . . . . . Machines | -11 -10 -10 -9 -9 -9 -8 -8 -7 -6 -6 -6 -5 -5 -5 -5 -4 -4 -4 -4 -4 -3 -3 -2 -1 -1 ---------- Run | Yrd Mat Min Mat Min Exi Min Mat Fac Fac Was Fac Fac Upp Upp Zhi Pro Fac Upp Upp War Pro Res Res Acc Com Machines Disabled 19 | . 1 . . . . . 1 1 . . 15 . . . . . . . . . . . 1 . . Max in Single Turn 1 | . 1 . . . . . 1 1 . . . . . . . . . . . . . . 1 . . Garrison Access 19 | . . . . . . . 1 2 3 . 2 2 . . . . 1 . . . . 1 4 3 . Machines Repaired . | . . . . . . . . . . . . . . . . . . . . . . . . . . Machines Dismantled . | . . . . . . . . . . . . . . . . . . . . . . . . . . Machines Sabotaged . | . . . . . . . . . . . . . . . . . . . . . . . . . . Overloaded Fab Kills . | . . . . . . . . . . . . . . . . . . . . . . . . . . Hacking | -11 -10 -10 -9 -9 -9 -8 -8 -7 -6 -6 -6 -5 -5 -5 -5 -4 -4 -4 -4 -4 -3 -3 -2 -1 -1 --------- Run | Yrd Mat Min Mat Min Exi Min Mat Fac Fac Was Fac Fac Upp Upp Zhi Pro Fac Upp Upp War Pro Res Res Acc Com Machines Accessed 164 | . 5 . 7 . 2 . 6 21 21 . 16 22 1 . 4 . 11 . . 3 . 7 10 15 13 Terminals 95 | . 4 . 6 . . . 6 12 12 . 10 12 . . . . 5 . . . . 3 6 9 10 Fabricators 14 | . . . . . . . . 2 3 . 2 4 . . . . 2 . . . . . . 1 . Repair Stations 10 | . . . . . . . . 2 . . 1 2 . . . . 1 . . . . . 1 1 2 Recycling Units 14 | . 1 . 1 . . . . 3 2 . . 1 . . . . 2 . . . . 2 . 1 1 Scanalyzers 4 | . . . . . . . . . 1 . 1 1 . . . . . . . . . 1 . . . Garrison Access 17 | . . . . . . . . 2 3 . 2 2 . . . . 1 . . . . 1 3 3 . Total Hacks 619 | . 10 . 26 . 2 . 22 65 77 . 74 104 1 . 17 . 48 . . 8 . 43 41 43 38 Successful 413 | . 3 . 8 . 2 . 14 32 49 . 57 86 1 . 17 . 37 . . 8 . 25 19 30 25 Failed 201 | . 7 . 17 . . . 8 33 28 . 16 16 . . . . 10 . . . . 18 22 13 13 Catastrophic 31 | . 1 . 1 . . . 2 4 4 . 4 3 . . . . . . . . . 4 5 3 . Database Lockouts 5 | . . . 1 . . . . . . . 1 2 . . . . 1 . . . . . . . . Manual 294 | . 1 . 17 . 1 . 9 31 47 . 39 38 . . . . 20 . . . . 27 23 22 19 Terminals 447 | . 8 . 24 . . . 22 39 55 . 57 80 . . . . 33 . . . . 32 35 30 32 Fabricators 50 | . . . . . . . . 6 13 . 8 12 . . . . 6 . . . . . . 5 . Repair Stations 27 | . . . . . . . . 8 . . 3 4 . . . . 3 . . . . . 2 2 5 Recycling Units 32 | . 2 . 2 . . . . 10 3 . . 4 . . . . 4 . . . . 5 . 1 1 Scanalyzers 12 | . . . . . . . . . 1 . 4 2 . . . . . . . . . 5 . . . Garrison Access 23 | . . . . . . . . 2 5 . 2 2 . . . . 2 . . . . 1 4 5 . Terminal Hacks 212 | . 2 . 7 . 2 . 9 6 16 . 31 50 1 . 17 . 17 . . 8 . 11 13 10 12 Record 28 | . . . . . 1 . . . . . 1 18 . . 5 . . . . 2 . . . . 1 Part Schematic 28 | . . . . . . . 2 . 3 . 5 6 . . 4 . 4 . . . . 2 1 . 1 Robot Schematic 2 | . . . . . . . . . . . 1 1 . . . . . . . . . . . . . Robot Analysis 8 | . . . . . . . . . . . . 3 . . 4 . . . . . . . . 1 . Prototype ID Bank 36 | . . . 4 . . . 1 1 . . 3 7 . . 4 . 3 . . 5 . 2 4 1 1 Open Door 6 | . . . . . . . . . . . . . 1 . . . . . . 1 . . . 3 1 Level Access Points 7 | . . . . . . . . 1 1 . 1 1 . . . . . . . . . 1 1 1 . Branch Access Points 9 | . 1 . 1 . . . 1 . . . 1 2 . . . . 1 . . . . . 1 1 . Machine Index 7 | . . . . . . . . . 1 . 1 1 . . . . 1 . . . . 1 1 . 1 Terminal Index 8 | . . . . . . . 2 1 1 . . . . . . . 1 . . . . 1 . 1 1 Alert Level 7 | . . . . . . . . . . . 2 . . . . . 1 . . . . 1 1 1 1 Unreport Threat 10 | . . . . . . . . 1 2 . 5 2 . . . . . . . . . . . . . Locate Traps 12 | . 1 . . . . . 1 1 1 . 3 3 . . . . . . . . . . 1 . 1 Surveillance Status 1 | . . . . . . . . . . . 1 . . . . . . . . . . . . . . Patrol Status 2 | . . . . . . . . . . . 1 . . . . . . . . . . . . . 1 Investigation Status 1 | . . . . . . . . . 1 . . . . . . . . . . . . . . . . Intercept Status 1 | . . . . . . . . . . . 1 . . . . . . . . . . . . . . Recall Investigation 8 | . . . . . . . . . 2 . 1 3 . . . . 2 . . . . . . . . Recall Reinforcements 1 | . . . . . . . . . 1 . . . . . . . . . . . . . . . . Hauler Manifests 5 | . . . . . . . 1 . . . 1 1 . . . . 1 . . . . 1 . . . Registered Components 8 | . . . 1 . . . 1 1 1 . 1 1 . . . . 1 . . . . . 1 . . Registered Prototypes 6 | . . . . . . . . . 1 . 1 . . . . . 1 . . . . 1 1 . 1 Zone Layout 9 | . . . 1 . . . . . 1 . 1 1 . . . . 1 . . . . 1 1 1 1 Derelict Proto ID Bank 1 | . . . . . 1 . . . . . . . . . . . . . . . . . . . . Disengage Seal 1 | . . . . . . . . . . . . . . . . . . . . . . . . . 1 Fabricator Hacks 31 | . . . . . . . . 4 7 . 4 9 . . . . 4 . . . . . . 3 . Network Status 3 | . . . . . . . . . 1 . . 1 . . . . . . . . . . . 1 . Load Schematic 14 | . . . . . . . . 2 3 . 2 4 . . . . 2 . . . . . . 1 . Build 14 | . . . . . . . . 2 3 . 2 4 . . . . 2 . . . . . . 1 . Repair Station Hacks 20 | . . . . . . . . 4 . . 2 4 . . . . 2 . . . . . 2 2 4 Scan Component 10 | . . . . . . . . 2 . . 1 2 . . . . 1 . . . . . 1 1 2 Repair 10 | . . . . . . . . 2 . . 1 2 . . . . 1 . . . . . 1 1 2 Recycling Unit Hacks 16 | . 1 . . . . . . 3 3 . . 2 . . . . 2 . . . . 3 . 1 1 Report Inventory 1 | . . . . . . . . . 1 . . . . . . . . . . . . . . . . Retrieve Components 15 | . 1 . . . . . . 3 2 . . 2 . . . . 2 . . . . 3 . 1 1 Scanalyzer 10 | . . . . . . . . . 1 . 4 2 . . . . . . . . . 3 . . . Insert Component 8 | . . . . . . . . . 1 . 2 2 . . . . . . . . . 3 . . . Analyze 2 | . . . . . . . . . . . 2 . . . . . . . . . . . . . . Garrison Access Hacks 17 | . . . . . . . . 2 3 . 2 2 . . . . 1 . . . . 1 3 3 . Seal Access 17 | . . . . . . . . 2 3 . 2 2 . . . . 1 . . . . 1 3 3 . Unauthorized Hacks 107 | . . . 1 . . . 5 13 19 . 14 17 . . . . 11 . . . . 7 1 11 8 Terminals 88 | . . . 1 . . . 5 10 15 . 12 12 . . . . 9 . . . . 5 1 10 8 Track 5 | . . . . . . . . . . . . . . . . . . . . . . 1 1 2 1 Assimilate 11 | . . . 1 . . . . 1 2 . 1 1 . . . . 3 . . . . . . 2 . Botnet 68 | . . . . . . . 5 9 12 . 10 11 . . . . 5 . . . . 3 . 6 7 Operators 4 | . . . . . . . . . 1 . 1 . . . . . 1 . . . . 1 . . . Fabricators 12 | . . . . . . . . . 4 . 2 3 . . . . 2 . . . . . . 1 . Prioritize 11 | . . . . . . . . . 3 . 2 3 . . . . 2 . . . . . . 1 . Haulers 1 | . . . . . . . . . 1 . . . . . . . . . . . . . . . . Repair Stations . | . . . . . . . . . . . . . . . . . . . . . . . . . . Recycling Units 7 | . . . . . . . . 3 . . . 2 . . . . . . . . . 2 . . . Monitor 3 | . . . . . . . . 1 . . . 1 . . . . . . . . . 1 . . . Recyclers 4 | . . . . . . . . 2 . . . 1 . . . . . . . . . 1 . . . Scanalyzers . | . . . . . . . . . . . . . . . . . . . . . . . . . . Garrison Access . | . . . . . . . . . . . . . . . . . . . . . . . . . . Data Cores Recovered 4 | . . . . . . . . . . . 1 . . . . . . . . . . . 1 1 1 Used 2 | . . . . . . . . . . . . . . . . . . . . . . . 1 1 . Hacking Detections 114 | . 5 . 7 . . . 6 17 19 . 10 17 . . . . 7 . . . . 4 5 7 10 Full Trace Events 18 | . . . . . . . . 3 4 . 2 4 . . . . 2 . . . . 1 . 1 1 Feedback Events 2 | . . . . . . . . . 1 . . . . . . . . . . . . . . . 1 Hackware Fried 2 | . . . . . . . . . 1 . . . . . . . . . . . . . . . 1 Feedback Blocked . | . . . . . . . . . . . . . . . . . . . . . . . . . . Robot Schematics Acquired 2 | . . . . . . . . . . . 1 1 . . . . . . . . . . . . . Robots Built . | . . . . . . . . . . . . . . . . . . . . . . . . . . Authchips . | . . . . . . . . . . . . . . . . . . . . . . . . . . Time . | . . . . . . . . . . . . . . . . . . . . . . . . . . Total Robot Build Rating . | . . . . . . . . . . . . . . . . . . . . . . . . . . Part Schematics Acquired 30 | . . . . . . . 2 . 3 . 7 6 . . 4 . 4 . . . . 2 1 . 1 Parts Built 17 | . . . . . . . . 2 3 . 2 5 . . . . 4 . . . . . . 1 . Authchips . | . . . . . . . . . . . . . . . . . . . . . . . . . . Time 549 | . . . . . . . . 72 119 . 70 164 . . . . 93 . . . . . . 31 . Total Part Build Rating 98 | . . . . . . . . 6 11 . 10 34 . . . . 30 . . . . . . 7 . Parts Repaired 10 | . . . . . . . . 2 . . 1 2 . . . . 1 . . . . . 1 1 2 Time 404 | . . . . . . . . 45 . . 47 112 . . . . 40 . . . . . 34 36 90 Parts Recycled . | . . . . . . . . . . . . . . . . . . . . . . . . . . Recycled Matter . | . . . . . . . . . . . . . . . . . . . . . . . . . . Retrieved Matter . | . . . . . . . . . . . . . . . . . . . . . . . . . . Retrieved Components 47 | . 2 . . . . . . 8 3 . . . . . . . 11 . . . . 3 . 10 10 Parts Scanalyzed 3 | . . . . . . . . . . . 2 . . . . . . . . . . 1 . . . Part Schematics Acquired 2 | . . . . . . . . . . . 2 . . . . . . . . . . . . . . Parts Damaged 2 | . . . . . . . . . . . 1 . . . . . . . . . . 1 . . . Bothacking | -11 -10 -10 -9 -9 -9 -8 -8 -7 -6 -6 -6 -5 -5 -5 -5 -4 -4 -4 -4 -4 -3 -3 -2 -1 -1 ------------ Run | Yrd Mat Min Mat Min Exi Min Mat Fac Fac Was Fac Fac Upp Upp Zhi Pro Fac Upp Upp War Pro Res Res Acc Com Used RIF Installer . | . . . . . . . . . . . . . . . . . . . . . . . . . . Robots Hacked 12 | . . . . . . . . 3 3 . . 1 . . . . 2 . . . . 2 . 1 . Non-combat 12 | . . . . . . . . 3 3 . . 1 . . . . 2 . . . . 2 . 1 . Combat . | . . . . . . . . . . . . . . . . . . . . . . . . . . Robot Hacks Applied 17 | . . . . . . . . 5 5 . . 2 . . . . 2 . . . . 2 . 1 . no_distress 11 | . . . . . . . . 2 3 . . 1 . . . . 2 . . . . 2 . 1 . find_chute 1 | . . . . . . . . 1 . . . . . . . . . . . . . . . . . find_fabricator 3 | . . . . . . . . 1 2 . . . . . . . . . . . . . . . . find_dsf 2 | . . . . . . . . 1 . . . 1 . . . . . . . . . . . . . Relay Couplers Released 6 | . . . . . . . 3 . . . . . . . . . . . . . . . 3 . . Machine Destruction 6 | . . . . . . . 3 . . . . . . . . . . . . . . . 3 . . Fabnet Peak Effective % . | . . . . . . . . . . . . . . . . . . . . . . . . . . Robots Rewired 2 | . . . . . . . . . . . . 2 . . . . . . . . . . . . . Allies Hacked . | . . . . . . . . . . . . . . . . . . . . . . . . . . Hacks Repelled 1 | . . . . . . . . . . . . . . . . . . . . 1 . . . . . Allies | -11 -10 -10 -9 -9 -9 -8 -8 -7 -6 -6 -6 -5 -5 -5 -5 -4 -4 -4 -4 -4 -3 -3 -2 -1 -1 -------- Run | Yrd Mat Min Mat Min Exi Min Mat Fac Fac Was Fac Fac Upp Upp Zhi Pro Fac Upp Upp War Pro Res Res Acc Com Total Allies 32 | . . . . . . . . 1 2 20 1 3 . . . . 3 . . . . . . 2 . Largest Group 21 | . . . . . . . . 1 2 21 21 4 . . . . 2 2 2 1 . . . 1 . Highest-Rated Group 736 | . . . . . . . . 26 52 736 736 81 . . . . 52 52 52 23 . . . 45 . Highest-Rated Ally 50 | . . . . . . . . 26 26 50 50 30 . . . . 26 26 26 23 . . . 45 . Total Orders 8 | . . . . . . . . . 2 . . . . . . . . . 4 2 . . . . . STAY 3 | . . . . . . . . . . . . . . . . . . . 2 1 . . . . . FOLLOW 3 | . . . . . . . . . . . . . . . . . . . 2 1 . . . . . EXPLORE 2 | . . . . . . . . . 2 . . . . . . . . . . . . . . . . Ally Attacks 105 | . . . . . . . . . . . 101 4 . . . . . . . . . . . . . Total Damage 4963 | . . . . . . . . . . . 4886 77 . . . . . . . . . . . . . Kills 44 | . . . . . . . . . . . 44 . . . . . . . . . . . . . . Allies Corrupted 1 | . . . . . . . . . . . 1 . . . . . . . . . . . . . . Allies Melted 2 | . . . . . . . . . . . . . . . . . . . . . . . 2 . . Intel | -11 -10 -10 -9 -9 -9 -8 -8 -7 -6 -6 -6 -5 -5 -5 -5 -4 -4 -4 -4 -4 -3 -3 -2 -1 -1 ------- Run | Yrd Mat Min Mat Min Exi Min Mat Fac Fac Was Fac Fac Upp Upp Zhi Pro Fac Upp Upp War Pro Res Res Acc Com Robot Analysis Total 8 | . . . . . . . . . . . . 3 . . 4 . . . . . . . . 1 . Derelict Logs Recovered 7 | . . . . 1 . . . . . . . . 1 1 . 1 . . 3 . . . . . . Drone Launches 2 | . . . . . . . . . 2 . . . . . . . . . . . . . . . . Drone Recoveries . | . . . . . . . . . . . . . . . . . . . . . . . . . . Exploration | -11 -10 -10 -9 -9 -9 -8 -8 -7 -6 -6 -6 -5 -5 -5 -5 -4 -4 -4 -4 -4 -3 -3 -2 -1 -1 ------------- Run | Yrd Mat Min Mat Min Exi Min Mat Fac Fac Was Fac Fac Upp Upp Zhi Pro Fac Upp Upp War Pro Res Res Acc Com Turns Passed 12582 | 95 264 308 1103 945 404 93 477 1003 816 103 432 710 564 132 82 105 711 101 384 377 120 340 1182 998 733 Spaces Moved 22033 | 49 152 189 442 397 251 59 547 2328 1740 114 1056 1610 931 359 186 323 1457 290 765 830 336 788 3429 2147 1258 Core 3 | 3 . . . . . . . . . . . . . . . . . . . . . . . . . Treads 1551 | 46 152 189 442 397 251 59 15 . . . . . . . . . . . . . . . . . . Legs . | . . . . . . . . . . . . . . . . . . . . . . . . . . Wheels . | . . . . . . . . . . . . . . . . . . . . . . . . . . Hover 2 | . . . . . . . . . . . . . . . . . . . . . . . . . 2 Flight 20477 | . . . . . . . 532 2328 1740 114 1056 1610 931 359 186 323 1457 290 765 830 336 788 3429 2147 1256 Fastest Speed 22 | 50 160 160 160 160 160 160 29 29 28 28 28 28 28 30 30 30 23 23 23 23 23 22 22 22 22 Average Speed 36 | 153 160 160 160 191 160 160 32 29 30 28 28 28 29 30 30 30 28 23 23 23 23 27 23 22 25 Slowest Speed 240 | 160 160 160 160 240 160 160 160 32 31 28 28 30 30 30 30 30 108 23 23 83 23 108 24 90 120 Overloaded Moves . | . . . . . . . . . . . . . . . . . . . . . . . . . . Propulsion Burnouts . | . . . . . . . . . . . . . . . . . . . . . . . . . . Robots Hopped 120 | . . . . . . . . 29 19 . . 22 . 1 . . 8 . . . . 8 10 21 2 Cave-ins Triggered . | . . . . . . . . . . . . . . . . . . . . . . . . . . Time Travels 1 | . . . . . . . . . . . . . . . 1 . . . . . . . . . . Exploration Rate (%) 53 | 5 46 40 50 81 65 28 46 62 42 78 34 51 77 56 61 57 42 51 88 91 58 16 81 44 38 Regions Visited 25 Branch Regions 13 Pre-discovered Areas 6 | . . . . . 1 . . . . . . . 1 . 3 . . . 1 . . . . . . Known Exits Taken 17 | . 1 . 1 . . . . 1 . . 1 1 1 1 1 1 1 1 1 1 1 1 1 1 . Unknown Exits Taken 6 | 1 . 1 . 1 1 1 1 . . . . . . . . . . . . . . . . . . Scrap Searched 12 | . . 1 . 2 . . . . . . . . 2 2 . 1 . 3 1 . . . . . . Spaces Dug 239 | . . . . . . . 7 29 21 . 8 12 24 6 . 2 36 2 4 . . 4 27 38 19 Terrain Destroyed 1081 | . 24 . 85 76 . . 26 29 21 . 8 12 183 39 . 2 125 2 59 46 . 48 108 114 74 Melee 204 | . . . . . . . 7 29 21 . 8 12 8 6 . 2 17 2 4 . . 4 27 38 19 Projectile 1 | . . . . 1 . . . . . . . . . . . . . . . . . . . . . AOE 876 | . 24 . 85 75 . . 19 . . . . . 175 33 . . 108 . 55 46 . 44 81 76 55 Terrain Rammed . | . . . . . . . . . . . . . . . . . . . . . . . . . . Walls Destroyed . | . . . . . . . . . . . . . . . . . . . . . . . . . . Machines Disabled . | . . . . . . . . . . . . . . . . . . . . . . . . . . Actions | -11 -10 -10 -9 -9 -9 -8 -8 -7 -6 -6 -6 -5 -5 -5 -5 -4 -4 -4 -4 -4 -3 -3 -2 -1 -1 --------- Run | Yrd Mat Min Mat Min Exi Min Mat Fac Fac Was Fac Fac Upp Upp Zhi Pro Fac Upp Upp War Pro Res Res Acc Com Total 25472 | 62 166 195 644 516 256 58 832 2512 1952 177 1178 1810 1195 370 204 326 1680 320 963 1005 367 886 3693 2560 1545 Wait 2301 | 2 6 5 41 45 . . 253 64 149 57 92 140 236 . . . 119 28 187 139 25 53 137 339 184 Move 21785 | 48 151 188 441 396 250 58 546 2271 1705 113 1055 1568 930 356 185 322 1440 289 764 829 335 771 3413 2106 1255 Hop 103 | . . . . . . . . 27 16 . . 19 . 1 . . 8 . . . . 8 5 18 1 Pick Up 89 | 1 1 2 15 13 1 . 1 10 8 1 5 5 . 1 1 1 1 . . 4 . 3 11 2 2 Fast Attach 124 | 8 . . 9 2 . . 3 9 6 . 1 10 1 . 6 . 10 . 2 7 . 9 7 11 23 Attach 51 | . . . 6 3 . . 8 2 5 . . . 2 1 . . 6 . . 4 . 3 6 2 3 Detach 26 | 1 . . 2 . 2 . . . 1 . . . 2 . 2 . 5 . 1 2 . 1 5 . 2 Swap 84 | . 2 . 11 4 . . 1 6 5 . 6 5 4 1 . 1 9 1 2 1 . 4 15 4 2 Drop 167 | . . . 13 9 3 . 9 18 14 1 3 15 1 2 5 . 15 . 1 12 . 10 20 6 10 Fire 181 | 2 6 . 79 44 . . 4 . . . . . 10 2 . . 6 . 2 3 . 4 4 3 12 Melee 473 | . . . 27 . . . 7 75 43 5 8 31 9 6 5 2 37 2 4 4 7 12 70 68 51 Ram . | . . . . . . . . . . . . . . . . . . . . . . . . . . Kick . | . . . . . . . . . . . . . . . . . . . . . . . . . . Crush . | . . . . . . . . . . . . . . . . . . . . . . . . . . Escape Stasis 12 | . . . . . . . . 11 . . . . . . . . . . . . . . . 1 . Rewire . | . . . . . . . . . . . . . . . . . . . . . . . . . . Trap 76 | . . . . . . . . 19 . . 8 17 . . . . 24 . . . . 8 . . . Miscellaneous . | . . . . . . . . . . . . . . . . . . . . . . . . . . Route ------- -11/Scrapyard -10/Materials (discovered 2 exits: *Mat / *Min) -10/Mines -9/Materials (discovered 4 exits: *Mat x2 / *Min x2) -9/Mines (discovered 3 exits: *Mat x2 / *Exi) -9/Exiles -8/Mines -8/Materials (discovered 3 exits: *Fac / *Sto x2) -7/Factory (discovered 4 exits: *Fac x4) -6/Factory (discovered 5 exits: *Fac x4 / *Low) -6/Waste -6/Factory (discovered 6 exits: *Fac x4 / *Low x2) -5/Factory (discovered 8 exits: *Fac x4 / *Upp x2 / Ext x2) -5/Upper Caves -5/Upper Caves -5/Zhirov -4/Proximity Caves -4/Factory (discovered 4 exits: Res / *Upp x2 / Arm) -4/Upper Caves -4/Upper Caves -4/Warlord -3/Proximity Caves -3/Research (discovered 3 exits: *Res x3) -2/Research (discovered 5 exits: *Acc x3 / *Tes x2) -1/Access (discovered 2 exits: Sur / *Com) -1/Command History --------- Turn | Location | Event 35 | -11/Scrapyard | Discovered new exit (range 16) 96 | -11/Scrapyard | Entered Materials 185 | -10/Materials | Identified exit to Mines 254 | -10/Materials | Discovered new exit (range 15) 311 | -10/Materials | Build established: Mutant 360 | -10/Materials | Entered Mines 633 | -10/Mines | Discovered new exit (range 15) 668 | -10/Mines | Entered Materials 668 | -9/Materials | Evolved 2 slots: Propulsion x1, Utility x1 999 | -9/Materials | Identified exit to Mines 1116 | -9/Materials | Discovered new exit (range 15) 1516 | -9/Materials | Discovered new exit (range 16) 1627 | -9/Materials | Build established: Scavenger-Mutant 1656 | -9/Materials | Core integrity fell below 50% 1744 | -9/Materials | Central database locked down 1771 | -9/Materials | Entered Mines 1772 | -9/Mines | Assembled infested the area 1777 | -9/Mines | Assisted by a Guerilla fighting off Assembled 1789 | -9/Mines | Met a Derelict bent on vengeance 1809 | -9/Mines | Discovered new exit (range 9) 1822 | -9/Mines | Lost 3 parts (1p1n1u) 2015 | -9/Mines | Learned Materials garrison access intel 2110 | -9/Mines | Found a hidden stash of uninstalled traps 2327 | -9/Mines | Discovered new exit (range 7) 2657 | -9/Mines | Received a Rocket Launcher from a helpful Derelict 2708 | -9/Mines | Deemed a non-threat by the Exiles lab entrance 2708 | -9/Mines | Discovered new exit (range 5) 2716 | -9/Mines | Entered Exiles 2759 | -9/Exiles | Met 8R-AWN 2786 | -9/Exiles | Met EX-HEX 2897 | -9/Exiles | Met EX-BIN 2916 | -9/Exiles | Aligned with FarCom system 2917 | -9/Exiles | Given EX-Vault access code 2954 | -9/Exiles | Opened EX-Vault 2967 | -9/Exiles | Found Chronowheel 3002 | -9/Exiles | Warned to stay clear of 0b10 Research branches 3045 | -9/Exiles | Met EX-DEC 3053 | -9/Exiles | Learned location of Zion (-6) 3107 | -9/Exiles | Discovered new exit (range 10) 3120 | -9/Exiles | Left Exiles lab with Chronowheel 3120 | -9/Exiles | Entered Mines 3202 | -8/Mines | Discovered new exit (range 7) 3213 | -8/Mines | Entered Materials 3213 | -8/Materials | Evolved 2 slots: Propulsion x1, Utility x1 3213 | -8/Materials | Discovered new exit (range 15) 3214 | -8/Materials | Loaded intel: 1 garrison access location 3294 | -8/Materials | Garrison activated, responded to threat 3297 | -8/Materials | Identified exit to Storage 3574 | -8/Materials | Build established: Scavenger-Sprinter 3673 | -8/Materials | Discovered new exit (range 5) 3690 | -8/Materials | Entered Factory 3690 | -7/Factory | Evolved 2 slots: Utility x2 3886 | -7/Factory | Repaired Flight Unit 4085 | -7/Factory | Fabricated Hacking Suite? 4171 | -7/Factory | Build established: Hacker-Scout 4211 | -7/Factory | Identified exit to Factory 4286 | -7/Factory | Repaired Lgt. Deuterium Engine 4473 | -7/Factory | Fabricated Hacking Suite? 4693 | -7/Factory | Entered another Factory area 4693 | -6/Factory | Accompanied by 1 ally 4693 | -6/Factory | Evolved 2 slots: Utility x2 4707 | -6/Factory | Identified exit to Factory 4760 | -6/Factory | Hacking Suite fried by hacking feedback 5045 | -6/Factory | Fabricated Hacking Suite (x1) 5066 | -6/Factory | Discovered new exit (range 15) 5232 | -6/Factory | Fabricated Hacking Suite? 5397 | -6/Factory | Fabricated Imp. Hacking Suite (x1) 5509 | -6/Factory | Manually triggered Chute Trap 5509 | -6/Factory | Sucked down chute 5509 | -6/Factory | Entered Waste 5510 | -6/Waste | Joined by Warlord forces that had cleared the area 5519 | -6/Waste | 1 allies followed down the chute 5538 | -6/Waste | Discovered new exit (range 13) 5612 | -6/Waste | Entered Factory 5612 | -6/Factory | Accompanied by 21 allies 5614 | -6/Factory | Identified exit to Lower Caves 5614 | -6/Factory | Central database locked down 5666 | -6/Factory | Repaired Broken Impulse Thruster Array? 5716 | -6/Factory | Lost 5 allies 5822 | -6/Factory | Fabricated Imp. Hacking Suite (x1) 5847 | -6/Factory | Spotted B-75 Beast 5862 | -6/Factory | Allies destroyed B-75 Beast 5890 | -6/Factory | Fabricated Imp. Hacking Suite (x1) 6044 | -6/Factory | Entered another Factory area 6044 | -5/Factory | Accompanied by 2 allies 6044 | -5/Factory | Evolved 2 slots: Utility x2 6106 | -5/Factory | Discovered new exit (range 8) 6125 | -5/Factory | Identified exit to Upper Caves 6125 | -5/Factory | Identified exit to Extension 6125 | -5/Factory | Identified exit to Factory 6198 | -5/Factory | Fabricated Adv. Hacking Suite? 6211 | -5/Factory | Lost 4 allies 6257 | -5/Factory | Fabricated Adv. Hacking Suite? 6334 | -5/Factory | Found Prototype Launcher 6354 | -5/Factory | Identified Mni. Smartbomb Launcher 6381 | -5/Factory | Repaired Imp. Datajack 6429 | -5/Factory | Repaired Broken Biomechanical Wings? 6440 | -5/Factory | Fabricated Adv. Hacking Suite? 6476 | -5/Factory | Central database locked down 6476 | -5/Factory | Central database locked down 6506 | -5/Factory | Spotted B-75 Beast 6548 | -5/Factory | Build established: Wizard-Ninja 6715 | -5/Factory | Fabricated Q-thruster? 6754 | -5/Factory | Entered Upper Caves 7205 | -5/Upper Caves | Spotted B-75 Beast 7271 | -5/Upper Caves | Discovered new exit (range 8) 7273 | -5/Upper Caves | Identified exit to Upper Caves 7318 | -5/Upper Caves | Entered another Upper Caves area 7432 | -5/Upper Caves | Learned 8 Factory zone layouts 7444 | -5/Upper Caves | Discovered new exit (range 19) 7450 | -5/Upper Caves | Identified exit to Zhirov 7450 | -5/Upper Caves | Entered Zhirov 7450 | -5/Zhirov | Discovered new exit (range 3) 7456 | -5/Zhirov | Met Zhirov 7461 | -5/Zhirov | Learned location of Quarantine (-3) 7461 | -5/Zhirov | Learned location of Testing (-2) 7461 | -5/Zhirov | Learned location of Command (-1) 7464 | -5/Zhirov | Zhirov requested help retrieving the SGEMP Prototype 7470 | -5/Zhirov | Activated Chronowheel 7470 | -5/Zhirov | Spacetime reconverged on an earlier point 7474 | -5/Zhirov | Found Alien Artifact 7474 | -5/Zhirov | Identified Integrated Reactor 7474 | -5/Zhirov | Installed Integrated Reactor, increased core energy generation (+10) 7479 | -5/Zhirov | Found Alien Artifact 7532 | -5/Zhirov | Identified exit to Proximity Caves 7532 | -5/Zhirov | Entered Proximity Caves 7618 | -4/Proximity Caves | Learned location of 1 exit from Upper Caves 7620 | -4/Proximity Caves | Discovered exit to Factory (range 13) 7637 | -4/Proximity Caves | Entered Factory 7637 | -4/Factory | Evolved 2 slots: Utility x2 7638 | -4/Factory | Identified exit to Research 7638 | -4/Factory | Identified exit to Upper Caves 7803 | -4/Factory | Identified exit to Armory 7805 | -4/Factory | Central database locked down 7809 | -4/Factory | Fabricated Q-thruster? 8101 | -4/Factory | Repaired Cld. Cesium-ion Thruster 8112 | -4/Factory | Found Fusion Bomb Launcher 8193 | -4/Factory | Spotted B-86 Titan 8247 | -4/Factory | Fabricated Adv. Surge Thruster? 8348 | -4/Factory | Entered Upper Caves 8348 | -4/Upper Caves | Accompanied by 2 allies 8349 | -4/Upper Caves | Identified exit to Upper Caves 8449 | -4/Upper Caves | Entered another Upper Caves area 8449 | -4/Upper Caves | Accompanied by 2 allies 8643 | -4/Upper Caves | Learned location of 1 exit from Research 8658 | -4/Upper Caves | Found Alien Artifact 8658 | -4/Upper Caves | Identified Core Expander 8658 | -4/Upper Caves | Installed Core Expander, added new Power slot 8795 | -4/Upper Caves | Discovered new exit (range 9) 8796 | -4/Upper Caves | Identified exit to Warlord 8810 | -4/Upper Caves | Learned Research emergency access door positions 8812 | -4/Upper Caves | Learned location of Armory (-4) 8833 | -4/Upper Caves | Entered Warlord 8833 | -4/Warlord | Accompanied by 1 ally 8871 | -4/Warlord | Met Warlord 8896 | -4/Warlord | Warlord's base attacked by MAIN.C 8978 | -4/Warlord | Found Prototype Special Weapon 8978 | -4/Warlord | Identified RU-N14's Throwing Claymores v3 8982 | -4/Warlord | Found RU-N14's Throwing Claymores v3 8985 | -4/Warlord | Found RU-N14's Throwing Claymores v3 8994 | -4/Warlord | Found Prototype Energy Gun 8994 | -4/Warlord | Identified Vortex Rail 8997 | -4/Warlord | Found Prototype Energy Cannon 8997 | -4/Warlord | Identified Vortex Cannon 9006 | -4/Warlord | Found Prototype Launcher 9006 | -4/Warlord | Identified Vortex Catalyst Activator 9121 | -4/Warlord | Warlord forces counterattacked 9207 | -4/Warlord | Discovered new exit (range 16) 9210 | -4/Warlord | Identified exit to Proximity Caves 9210 | -4/Warlord | Entered Proximity Caves 9214 | -3/Proximity Caves | Spotter reported a threat 9221 | -3/Proximity Caves | Lost 6 allies 9318 | -3/Proximity Caves | Discovered exit to Research (range 9) 9330 | -3/Proximity Caves | Entered Research 9330 | -3/Research | Evolved 2 slots: Propulsion x1, Utility x1 9331 | -3/Research | Identified exit to Research 9390 | -3/Research | Found Prototype Device 9517 | -3/Research | Identified Exp. Thermal Shield 9670 | -3/Research | Entered another Research area 9670 | -2/Research | Warlord forces began assault on 0b10 9670 | -2/Research | Evolved 2 slots: Propulsion x1, Utility x1 9690 | -2/Research | Identified exit to Access 9690 | -2/Research | Identified exit to Testing 9732 | -2/Research | Found Gamma Bomb Array 9780 | -2/Research | Research machine network offline 9785 | -2/Research | Repaired Q-thruster 9904 | -2/Research | Spotted B-90 Cyclops 9908 | -2/Research | Met up with Warlord 10008 | -2/Research | Borebot progress halted 10115 | -2/Research | Found Prototype Launcher 10134 | -2/Research | Spotted Striker 10226 | -2/Research | Spotted Striker 10252 | -2/Research | Identified Ragnarok Missile Launcher 10344 | -2/Research | Found Prototype Processor 10390 | -2/Research | Borebot progress halted 10655 | -2/Research | Found Exp. Core Analyzer 10844 | -2/Research | Warlord invited to help at Command 10852 | -2/Research | Entered Access 10852 | -1/Access | Evolved 2 slots: Utility x2 10945 | -1/Access | Fabricated Exp. Optical Array (x1) 10958 | -1/Access | Identified exit to Surface 10992 | -1/Access | Identified exit to Command 10996 | -1/Access | Repaired Centrium Light Armor Plating? 11022 | -1/Access | Spotted B-99 Colossus 11132 | -1/Access | Spotted B-99 Colossus 11368 | -1/Access | Found Enh. Force Lance 11373 | -1/Access | Spotted B-99 Colossus 11602 | -1/Access | Search patrols dispatched 11831 | -1/Access | Found Centrium Greatsword 11850 | -1/Access | Entered Command 11854 | -1/Command | Adv. System Shield fried by hacking feedback 11925 | -1/Command | Repaired Centrium Light Armor Plating? 12000 | -1/Command | Disengaged cave seal 12000 | -1/Command | Derelicts emerged from the dark tunnel 12000 | -1/Command | Welcomed Warlord to Command 12071 | -1/Command | Lost 3 allies 12141 | -1/Command | Repaired Centrium Light Armor Plating 12146 | -1/Command | Lost 3 allies 12209 | -1/Command | Spotted M Guard 12209 | -1/Command | Spotted M Guard 12209 | -1/Command | Spotted Combat Programmer 12209 | -1/Command | Spotted Combat Programmer 12229 | -1/Command | Warlord commented on Warlord statues 12273 | -1/Command | Warlord destroyed during the assault 12291 | -1/Command | Met MAIN.C 12300 | -1/Command | Identified Transdimensional Reconstructor 12300 | -1/Command | Failed to warp due to unstable space 12301 | -1/Command | Core integrity fell below 50% 12332 | -1/Command | Lost 14 parts (2p5n7u) 12350 | -1/Command | Destroyed Combat Programmer 12366 | -1/Command | System corruption reached 10% 12441 | -1/Command | Found Enh. Force Lance 12573 | -1/Command | Spotted Executioner 12573 | -1/Command | Spotted Executioner 12573 | -1/Command | Spotted Striker 12573 | -1/Command | Spotted Executioner 12573 | -1/Command | Spotted Executioner 12573 | -1/Command | Spotted Alpha 7 12573 | -1/Command | Spotted Striker 12573 | -1/Command | Spotted Alpha 7 12577 | -1/Command | Spotted B-99 Colossus 12578 | -1/Command | Spotted B-99 Colossus 12580 | -1/Command | Core integrity fell below 20% 12583 | -1/Command | Destroyed by Alpha 7 with Multirail Last Messages --------------- 12577_ Xenon Bombardment Thruster destroyed. 12578_ Executioner suffers critical hit (Destroy). 12578_ Executioner destroyed. 12579_ Penetrated by Slug. 12579_ Slug penetrates Executioner. 12579_ Slug penetrates Wall. 12580_ Knocked back. 12581_ Penetrated by Slug. 12581_ Adv. Hacking Suite destroyed. 12581_ Terminal disabled. 12581_ Field Propulsion Array destroyed. 12581_ Penetrated by Slug. 12581_ Slug penetrates Terminal. 12582_ The unstable cave ceiling collapses. 12583_ Executioner knocked back. 12583_ Penetrated by Slug. 12583_ Slug penetrates Wall. 12583_ Executioner suffers critical hit (Destroy). Map ----- +----------------------------------------------------+ | ! = # """ #?????#######???????????????? | | " # "T ##???? #???????????????? | | ! [ " # """ #"### #???????????????? | | !*[Y" # "" # "#???????????????? | | [="" + # ""#???????????????? | | "" # + ""#???????????????? | | + # ""#???????????????? | | "" ###### " ""#???????????????? | | """" #????# % + "#???????????????? | | """" #????# # ""#???????????????? | | "" #????# = % + ""#???????????????? | | ######+#+##????# = # ""#???????????????? | | ###### ####### == # " #???????????????? | | # == # "#???????????????? | | = #! % ; #???????????????? | | ! ==#!/ ]]= #???????????????? | | !+[=! % ]] #???????????????? | | !############# # ]]Y #???????????????? | | #???????????## %### ###???????????????? | | #????????????# #???#?????????????????? | | #??###???????# 7 ##?????????????????????? | | ####Y#####??###7 ;#?????????????????????? | | # #??# K!= #?????????????????????? | | # #??# !%! K #?????????????????????? | | # "" #??# ![ E #?????????????????????? | | # """ #??# E @E#?????????????????????? | | #??"T #??# % #?????????????????????? | | ###"##? """ #??## ##?????????????????????? | | ######? "" #???# ^ ??????????????????????? | | # # #???## BB#??????????????????????? | | # "T # #??? BB BB ??????????????????????? | | # "" + #?? BB ??????????????????????? | | # # #?# ^ ??????????????????????? | | ## ## #?# """""" ??????????????????????? | | ?#/ #?? #?# ?????? ?????????????????????? | | ?# #??! ! #?# ?????? ?????????????????????? | | ?# #??? #?# ?????? ?????????????????????? | | ## ##?? #?# ??????? ?????????????????????? | | #??? #?# ???????? ?????????????????????? | | *#??? #?# ???????? ?????????????????????? | | #?#+######??????????? ?????????????????????? | | !#?# #???????????????? ?????????????????????? | | #?# #????????????????##?????????????????????? | | ### #???????????????????????????????????????? | | #???????????????????????????????????????? | | #???????????????????????????????????????? | | ####+###+###?????????????????????????????????????? | | #?????????????????????????????????????? | | #?????????????????????????????????????? | | ! #?????????????????????????????????????? | +----------------------------------------------------+ Best States ------------- Heat Dissipation 109 Energy Generation 56 Energy Capacity 290 Matter Stores 300 Matter Capacity 300 Sight Range 23 Robot Scan Range 16 Terrain Scan Range 20 Terrain Scan Density 210 Jamming Range 16 Cloak Strength 4 Power Amplification 30 Base Temperature (-) 200 Armor Coverage 300 Melee Speed Boost 30 Evasion (%) 77 Melee Accuracy 16 Core Analysis 8 Recoil Reduction 3 Offensive Hacking 66 Defensive Hacking 54 Item Schematics ----------------- Hacking Suite | -8/Materials | Hacked System Shield | -8/Materials | Hacked Adv. Heat Sink | -6/Factory | Hacked Imp. Hacking Suite | -6/Factory | Hacked Imp. System Shield | -6/Factory | Hacked Cld. VTOL Module | -6/Factory | Hacked Lgt. Fission Core | -6/Factory | Hacked Plasma Rifle | -6/Factory | Hacked Linear Gravjet | -6/Factory | Hacked Cloaking Device | -6/Factory | Hacked Biomechanical Wings | -6/Factory | Scanalyzed Lrn. Missile Launcher | -6/Factory | Scanalyzed Adv. Hacking Suite | -5/Factory | Hacked Adv. System Shield | -5/Factory | Hacked Lance | -5/Factory | Hacked Q-thruster | -5/Factory | Hacked Hvy. Disruptor Cannon | -5/Factory | Hacked Imp. Kinecellerator | -5/Factory | Hacked Assault Drone Bay | -5/Zhirov | Free Exp. Heat Sink | -5/Zhirov | Free Exp. Optical Array | -5/Zhirov | Free Imp. Arc Thrower | -5/Zhirov | Free Adv. Powered Armor | -4/Factory | Hacked Dispersion Rifle | -4/Factory | Hacked Railgun | -4/Factory | Hacked Adv. Surge Thruster | -4/Factory | Hacked Exp. Hacking Suite | -3/Research | Hacked Diametric Drive | -3/Research | Hacked Lgt. Quantum Reactor | -2/Research | Hacked Exp. Core Analyzer | -1/Command | Hacked Robot Schematics ------------------ E-15 Imp | -6/Factory | Hacked B-60 Warrior | -5/Factory | Hacked Fabricated ------------ Hacking Suite | x1 | -7/Factory Hacking Suite | x1 | -7/Factory Hacking Suite | x1 | -6/Factory Hacking Suite | x1 | -6/Factory Imp. Hacking Suite | x1 | -6/Factory Imp. Hacking Suite | x1 | -6/Factory Imp. Hacking Suite | x1 | -6/Factory Adv. Hacking Suite | x1 | -5/Factory Adv. Hacking Suite | x1 | -5/Factory Adv. Hacking Suite | x1 | -5/Factory Q-thruster | x2 | -5/Factory Q-thruster | x2 | -4/Factory Adv. Surge Thruster | x2 | -4/Factory Exp. Optical Array | x1 | -1/Access Alien Tech Used ----------------- Integrated Reactor Core Expander Transdimensional Reconstructor Achievements -------------- None Challenges ------------ None Game ------ Seed DecoderConstructModule Manual? 0 Play Time 04:33:21 Cumulative 288.6 hours Start 2024.06.29 @ 21:04:54 End 2024.06.30 @ 02:25:48 Sessions 1 Manual Loads 0 Difficulty Rogue Special Mode None Game No. 278 Rogue 273 Adventurer 5 Explorer 0 Win Type - Total 5 Types 4/0/0/1/0/0/0/0/0 Lore% 68 Gallery% 84 Achievement% 64 Wizard Run 0 Options --------- Layout 1 ASCII 0 Keyboard 0 Movement Arrows Keybinds 0 Fullscreen 1 Font 24/Smallcaps Map View 50x35 Zoom Use 0% Tactical HUD 1 Map Filters NONE Filters NONE Steam 1 RUN: 7488b57f-4cbd-4a4a-bac2-cad5d7b111b0